fUSD/lending_fUSD_20241109
["ID","MTS","AMOUNT","RATE_DAILY","PERIOD"]
[341745402,1731184467161,0.4,0.00011288,2]
[341745405,1731184521480,3700.0,0.00014383,7]
[341745406,1731184576719,1070.37044303,0.00014999,5]
[341745407,1731184634629,150.0,0.00011989,2]
[341745408,1731184634664,150.0,0.00011989,2]
[341745409,1731184634698,150.0,0.00011989,2]
[341745410,1731184634733,150.0,0.00011989,2]
[341745411,1731184634777,965.72,0.00011989,2]
[341745413,1731184722579,1999.96,0.00027,60]
[341745417,1731185011452,-23900.0,0.00013289,2]
[341745418,1731185011504,-183.08,0.0001361,2]
[341745419,1731185011557,-183.08,0.00013617,2]
[341745420,1731185011608,-150.0,0.00013624,2]
[341745421,1731185011659,-183.08,0.00013624,2]
[341745422,1731185011711,-183.08,0.00013631,2]
[341745423,1731185011763,-183.08,0.00013639,2]
[341745424,1731185011814,-183.08,0.00013646,2]
[341745425,1731185011867,-183.08,0.00013653,2]
[341745426,1731185011918,-183.08,0.0001366,2]
[341745427,1731185011971,-183.08,0.00013667,2]
[341745428,1731185012023,-183.08,0.00013674,2]
[341745429,1731185012246,-1000.0,0.00013679,2]
[341745430,1731185012300,-183.08,0.00013682,2]
[341745431,1731185012354,-183.08,0.00013689,2]
[341745432,1731185012407,-183.08,0.00013696,2]
[341745433,1731185012460,-183.08,0.00013703,2]
[341745434,1731185012513,-183.08,0.0001371,2]
[341745435,1731185012564,-183.08,0.00013717,2]
[341745436,1731185012616,-704.12,0.00013724,2]
[341745437,1731185012668,-183.08,0.00013724,2]
[341745438,1731185012719,-183.08,0.00013732,2]
[341745439,1731185012771,-183.08,0.00013739,2]
[341745440,1731185012822,-183.08,0.00013746,2]
[341745441,1731185012873,-429.95,0.00013748,2]
[341745442,1731185012925,-7051.32686932,0.00013805,2]
[341745443,1731185012977,-417.46,0.00013805,2]
[341745444,1731185013260,-300.0,0.00013832,2]
[341745445,1731185013316,-279.7,0.00013833,2]
[341745446,1731185013369,-250.0,0.00013833,2]
[341745447,1731185013430,-3193.8,0.00013862,2]
[341745448,1731185013481,-155.76,0.00013862,2]
[341745449,1731185013532,-297.87,0.00013904,2]
[341745450,1731185013586,-1852.42,0.00013962,2]
[341745451,1731185013637,-200.0,0.00013967,2]
[341745452,1731185013688,-161.84,0.00013993,2]
[341745453,1731185013739,-150.99,0.00013993,2]
[341745454,1731185013789,-16404.49,0.00014019,2]
[341745455,1731185013843,-404.49,0.0001402,2]
[341745456,1731185013894,-3076.86,0.00014109,2]
[341745457,1731185013945,-150.4,0.00014109,2]
[341745458,1731185013996,-1111.12,0.00014137,2]
[341745459,1731185014288,-250.0,0.00014141,2]
[341745460,1731185014342,-182.83,0.00014227,2]
[341745461,1731185014394,-1565.72,0.00014253,2]
[341745462,1731185014445,-150.0,0.00014483,2]
[341745463,1731185014499,-417.46,0.00014495,2]
[341745464,1731185014550,-167.51690814,0.00014683,2]
[341745465,1731185014600,-150.0,0.0001474,2]
[341745466,1731185014653,-150.0,0.00014751,2]
[341745467,1731185014703,-150.0,0.00014768,2]
[341745468,1731185014756,-150.0,0.00014779,2]
[341745469,1731185014809,-4444.59413255,0.000148,2]
[341745470,1731185014861,-150.0,0.00014809,2]
[341745471,1731185014913,-4444.59413253,0.00014811,2]
[341745472,1731185014963,-150.0,0.00014815,2]
[341745473,1731185015240,-4444.59413253,0.00014822,2]
[341745474,1731185015292,-150.0,0.00014827,2]
[341745475,1731185015347,-4444.59413253,0.00014833,2]
[341745476,1731185015399,-4444.59413253,0.00014844,2]
[341745477,1731185015452,-150.0,0.0001485,2]
[341745478,1731185015506,-150.0,0.00014855,2]
[341745479,1731185015560,-4444.59413253,0.00014856,2]
[341745480,1731185015612,-4444.59413253,0.00014867,2]
[341745481,1731185015662,-1947.6649,0.00014877,2]
[341745482,1731185015715,-4444.59413253,0.00014878,2]
[341745483,1731185015768,-4444.59413253,0.00014889,2]
[341745484,1731185015819,-159.38,0.0001489,3]
[341745485,1731185015869,-478.18,0.0001489,3]
[341745486,1731185015918,-500.0,0.00014899,2]
[341745487,1731185015968,-500.0,0.00014899,2]
[341745488,1731185016247,-400.0,0.00014899,2]
[341745489,1731185016298,-351.21289477,0.00014899,2]
[341745490,1731185016351,-500.0,0.00014899,2]
[341745491,1731185016403,-500.0,0.00014899,2]
[341745492,1731185016457,-500.0,0.00014899,2]
[341745493,1731185016510,-500.0,0.00014899,2]
[341745494,1731185016562,-500.0,0.00014899,2]
[341745495,1731185016615,-500.0,0.00014899,2]
[341745496,1731185016666,-500.0,0.00014899,2]
[341745497,1731185016718,-500.0,0.00014899,2]
[341745498,1731185016770,-500.0,0.00014899,2]
[341745499,1731185016824,-502.81322571,0.00014899,2]
[341745500,1731185016875,-502.81322571,0.00014899,2]
[341745501,1731185016925,-502.81322571,0.00014899,2]
[341745502,1731185017168,-502.81322571,0.00014899,2]
[341745503,1731185017222,-502.81322571,0.00014899,2]
[341745504,1731185017274,-502.81322571,0.00014899,2]
[341745505,1731185017327,-502.81322571,0.00014899,2]
[341745506,1731185017383,-502.81322571,0.00014899,2]
[341745507,1731185017435,-502.81322571,0.00014899,2]
[341745508,1731185017489,-502.81322571,0.00014899,2]
[341745509,1731185017538,-502.81322571,0.00014899,2]
[341745510,1731185017593,-502.81322571,0.00014899,2]
[341745511,1731185017643,-502.81322571,0.00014899,2]
[341745512,1731185017693,-502.81322571,0.00014899,2]
[341745513,1731185017744,-502.81322571,0.00014899,2]
[341745514,1731185017795,-543.03828376,0.00014899,2]
[341745515,1731185017847,-543.03828376,0.00014899,2]
[341745516,1731185017897,-543.03828376,0.00014899,2]
[341745517,1731185018114,-543.03828376,0.00014899,2]
[341745518,1731185018167,-543.03828376,0.00014899,2]
[341745519,1731185018217,-189.72120918,0.000149,2]
[341745520,1731185018269,-1481.1325,0.000149,2]
[341745521,1731185018320,-311.06743405,0.000149,2]
[341745522,1731185018371,-18645.6074,0.000149,2]
[341745523,1731185018426,-169.67325875,0.000149,2]
[341745524,1731185018475,-2950.0209,0.000149,2]
[341745525,1731185018525,-322.2292,0.000149,2]
[341745526,1731185018575,-381.2359,0.000149,2]
[341745527,1731185018623,-1000.0,0.000149,2]
[341745528,1731185018673,-1000.0,0.000149,2]
[341745529,1731185018725,-2018.9483,0.000149,2]
[341745530,1731185018774,-200.0,0.000149,2]
[341745531,1731185018823,-2677.3336,0.000149,2]
[341745532,1731185019155,-310.50376172,0.000149,2]
[341745533,1731185019207,-2500.0,0.000149,2]
[341745534,1731185019258,-117609.143,0.000149,2]
[341745535,1731185019312,-946.0405,0.000149,2]
[341745536,1731185019364,-2815.1044,0.000149,2]
[341745537,1731185019421,-245000.0,0.000149,2]
[341745538,1731185019472,-174.71258759,0.000149,2]
[341745539,1731185019523,-500.0,0.000149,2]
[341745540,1731185019575,-4444.59413253,0.000149,2]
[341745541,1731185019627,-150.0,0.00014948,2]
[341745542,1731185019679,-150.0,0.00014961,2]
[341745543,1731185019731,-724.174,0.00014965,2]
[341745544,1731185019783,-500.0,0.00014973,2]
[341745545,1731185019833,-500.0,0.00014973,2]
[341745546,1731185020066,-392.35673037,0.00014973,2]
[341745547,1731185020118,-500.0,0.00014973,2]
[341745548,1731185020169,-500.0,0.00014973,2]
[341745549,1731185020221,-202.2563744,0.00014973,2]
[341745550,1731185020273,-150.0,0.00014974,2]
[341745551,1731185020325,-326.69,0.00014978,2]
[341745552,1731185020376,-5018.3615601,0.00014988,2]
[341745553,1731185020431,-4254.5707857,0.0001499,2]
[341745554,1731185020483,-3490.7800112,0.0001499,2]
[341745555,1731185020533,-2726.9892368,0.0001499,2]
[341745556,1731185020584,-1963.1984623,0.0001499,2]
[341745557,1731185020635,-2948.16201578,0.0001499,2]
[341745558,1731185020685,-249.97404408,0.0001499,2]
[341745559,1731185020734,-249.97404408,0.0001499,2]
[341745560,1731185020785,-249.97404408,0.0001499,2]
[341745561,1731185021012,-271.18471726,0.00014995,2]
[341745562,1731185021065,-934.51336364,0.00014999,2]
[341745563,1731185021116,-532.58,0.00014999,2]
[341745564,1731185021165,-150.01,0.00014999,2]
[341745565,1731185021215,-2864.6966972,0.00014999,2]
[341745566,1731185021266,-994.3585,0.00014999,2]
[341745567,1731185021317,-4434875.22875972,0.00015,2]
[341745568,1731185256922,150.0,0.00011313,2]
[341745569,1731185256944,0.4,0.00011313,2]
[341745591,1731185432637,-1446.65,0.00012285,2]
[341745592,1731185432647,-150.0,0.00013502,2]
[341745593,1731185432656,-426.8,0.00014055,2]
[341745594,1731185432666,-300.0,0.00014174,2]
[341745595,1731185432675,-12559.871134,0.00014175,2]
[341745596,1731185432775,-2540.128866,0.00014175,2]
[341745597,1731185432785,-160.51,0.00014249,2]
[341745598,1731185432795,-200.0,0.00014254,2]
[341745600,1731185432804,-186.72,0.0001426,2]
[341745602,1731185432814,-250.0,0.00014278,2]
[341745604,1731185432823,-762.33,0.00014541,2]
[341745606,1731185432833,-1446.65,0.00014549,2]
[341745608,1731185432842,-362.09,0.00014678,2]
[341745610,1731185432851,-150.0,0.00014678,2]
[341745612,1731185432861,-362.09,0.000147,2]
[341745614,1731185432870,-150.0,0.000147,2]
[341745616,1731185432879,-150.0,0.000147,2]
[341745618,1731185432889,-762.33,0.000147,2]
[341745620,1731185432899,-150.0,0.000147,2]
[341745621,1731185432909,-1000.0,0.00014799,2]
[341745622,1731185432919,-150.0,0.00014799,2]
[341745623,1731185432928,-117609.143,0.000148,2]
[341745624,1731185432939,-1369.2926,0.000148,2]
[341745625,1731185432949,-1000.0,0.000148,2]
[341745626,1731185432959,-283.7136,0.000148,2]
[341745627,1731185432968,-166.99569803,0.000148,2]
[341745628,1731185432979,-1584.04516639,0.000148,2]
[341745629,1731185432988,-1584.04516632,0.00014811,2]
[341745630,1731185432999,-166.995698,0.00014814,2]
[341745631,1731185433009,-1584.04516632,0.00014822,2]
[341745632,1731185433018,-166.995698,0.00014829,2]
[341745633,1731185433027,-1584.04516632,0.00014833,2]
[341745634,1731185433037,-166.995698,0.00014843,2]
[341745635,1731185433047,-1584.04516632,0.00014844,2]
[341745636,1731185433057,-1584.04516632,0.00014856,2]
[341745637,1731185433067,-166.995698,0.00014857,2]
[341745638,1731185433077,-166.995698,0.00014871,2]
[341745639,1731185433086,-500.0,0.00014873,2]
[341745640,1731185433096,-166.995698,0.00014886,2]
[341745641,1731185433106,-318.76,0.00014889,3]
[341745642,1731185433116,-100000.0,0.00014899,2]
[341745643,1731185433125,-37864.4698,0.000149,2]
[341745644,1731185433135,-223801.73805578,0.000149,2]
[341745647,1731185438357,-1584.04516632,0.00014867,2]
[341745648,1731185438367,-2473.33627014,0.000149,2]
[341745649,1731185438379,-5424.55216256,0.000149,2]
[341745650,1731185438390,-994.58835487,0.000149,2]
[341745651,1731185438401,-1556.38637894,0.000149,2]
[341745652,1731185438413,-10749.39877771,0.000149,2]
[341745653,1731185438429,-200.0,0.000149,2]
[341745654,1731185438438,-2500.0,0.000149,2]
[341745655,1731185438448,-5056.23197252,0.000149,2]
[341745656,1731185438457,-166.995698,0.000149,2]
[341745657,1731185438466,-160.69966965,0.00014973,2]
[341745658,1731185438475,-500.0,0.00014973,2]
[341745659,1731185438484,-500.0,0.00014973,2]
[341745660,1731185438494,-1909.79779813,0.00014999,2]
[341745661,1731185438503,-17500.17666167,0.00014999,2]
[341745662,1731185438516,-102216.2514145,0.00015,2]
[341745663,1731185438802,-7361.76606724,0.00015,2]
[341745664,1731185438820,-1061.37020414,0.00015,2]
[341745666,1731185438952,-4681.44158645,0.00015,2]
[341745801,1731185440316,-1000.0,0.00015,2]
[341745815,1731185440428,-871.25488162,0.00015,2]
[341745817,1731185440439,-1974.53489988,0.00015,2]
[341745823,1731185440490,-278.10229034,0.00015,2]
[341745825,1731185440501,-4463.87347354,0.00015,2]
[341745840,1731185440635,-985.69874495,0.00015,2]
[341745845,1731185440672,-1388.63497391,0.00015,2]
[341745885,1731185443369,-762.33,0.000146,2]
[341745886,1731185443378,-362.09,0.00014678,2]
[341745887,1731185443387,-1584.04516632,0.00014878,2]
[341745888,1731185443396,-38311.38085965,0.00015,2]
[341745891,1731185443436,-82613.12634487,0.00015,2]
[341745892,1731185443459,-65274.26276602,0.00015,2]
[341745893,1731185443539,-5633.10000002,0.00015,2]
[341745894,1731185443651,-2001.92425861,0.00015,2]
[341745895,1731185443662,-80269.94155852,0.00015,2]
[341745896,1731185443674,-5457.89208881,0.00015,2]
[341745897,1731185443685,-5837.37916197,0.00015,2]
[341745898,1731185443708,-57249.75,0.00015,2]
[341745907,1731185446792,-1236.85027077,0.00015,2]
[341745908,1731185446804,-11043.71608342,0.00015,2]
[341745910,1731185892650,800.0,0.00026986,120]
[341745911,1731186068934,800.0,0.00026986,120]
[341745912,1731186098492,-327.03,0.00013474,2]
[341745913,1731186098538,-959.53,0.00013549,2]
[341745914,1731186098586,-1373.68,0.00014151,2]
[341745915,1731186098633,-153.03,0.00014156,2]
[341745916,1731186098682,-26751.18703854,0.00014158,2]
[341745917,1731186099081,-1373.68,0.00014158,2]
[341745918,1731186099126,-1373.68,0.00014166,2]
[341745919,1731186099170,-1373.68,0.00014173,2]
[341745920,1731186099213,-1373.68,0.00014181,2]
[341745921,1731186099259,-23900.0,0.00014184,2]
[341745922,1731186099302,-1373.68,0.00014188,2]
[341745923,1731186099346,-1373.68,0.00014196,2]
[341745924,1731186099388,-1373.68,0.00014203,2]
[341745925,1731186099431,-1373.68,0.00014211,2]
[341745926,1731186099474,-1373.68,0.00014218,2]
[341745927,1731186099520,-1373.68,0.00014226,2]
[341745928,1731186099566,-1373.68,0.00014233,2]
[341745929,1731186099611,-1373.68,0.0001424,2]
[341745930,1731186099654,-1373.68,0.00014248,2]
[341745931,1731186099698,-1373.68,0.00014255,2]
[341745932,1731186099742,-1373.68,0.00014263,2]
[341745933,1731186099786,-1373.68,0.0001427,2]
[341745934,1731186099827,-1373.68,0.00014278,2]
[341745935,1731186099870,-1373.68,0.00014285,2]
[341745936,1731186099912,-1373.68,0.00014293,2]
[341745937,1731186099960,-1000.0,0.00014296,2]
[341745938,1731186100221,-150.0,0.00014445,2]
[341745939,1731186100264,-352.06,0.00014445,2]
[341745940,1731186100306,-472.771,0.00014699,2]
[341745941,1731186100349,-785.63878941,0.00014699,2]
[341745942,1731186100391,-785.63878941,0.00014721,2]
[341745943,1731186100433,-785.63878941,0.00014744,2]
[341745944,1731186100476,-150.0,0.00014758,2]
[341745945,1731186100523,-785.63878941,0.00014766,2]
[341745946,1731186100566,-785.63878941,0.00014788,2]
[341745947,1731186100609,-500.0,0.00014798,2]
[341745948,1731186100652,-500.0,0.00014798,2]
[341745949,1731186100696,-500.0,0.00014798,2]
[341745950,1731186100740,-500.0,0.00014798,2]
[341745951,1731186100782,-500.0,0.00014798,2]
[341745952,1731186100824,-500.0,0.00014798,2]
[341745953,1731186100866,-500.0,0.00014798,2]
[341745954,1731186100908,-500.0,0.00014798,2]
[341745955,1731186100954,-500.0,0.00014798,2]
[341745956,1731186100997,-500.0,0.00014798,2]
[341745957,1731186101038,-500.0,0.00014798,2]
[341745958,1731186101266,-500.0,0.00014798,2]
[341745959,1731186101309,-500.0,0.00014798,2]
[341745960,1731186101351,-500.0,0.00014798,2]
[341745961,1731186101393,-631.86079853,0.00014798,2]
[341745962,1731186101436,-500.0,0.00014798,2]
[341745963,1731186101478,-500.0,0.00014798,2]
[341745964,1731186101520,-500.0,0.00014798,2]
[341745965,1731186101562,-500.0,0.00014798,2]
[341745966,1731186101604,-500.0,0.00014798,2]
[341745967,1731186101646,-550.0,0.00014798,2]
[341745968,1731186101691,-150.0,0.00014798,2]
[341745969,1731186101735,-26719.6434,0.00014799,2]
[341745970,1731186101777,-1000.0,0.00014799,2]
[341745971,1731186101818,-16757.4629,0.00014799,2]
[341745972,1731186101861,-245000.0,0.00014799,2]
[341745973,1731186101902,-100000.0,0.00014799,2]
[341745974,1731186101943,-293.73,0.00014799,2]
[341745975,1731186101985,-785.63878941,0.00014811,2]
[341745976,1731186102028,-785.63878941,0.00014833,2]
[341745977,1731186102070,-785.63878941,0.00014855,2]
[341745978,1731186102112,-785.63878941,0.00014878,2]
[341745979,1731186102347,-300.0,0.00014894,2]
[341745980,1731186102392,-200.0,0.000149,2]
[341745981,1731186102434,-1000.0,0.000149,2]
[341745982,1731186102478,-213.67185109,0.000149,2]
[341745983,1731186102522,-785.63878941,0.000149,2]
[341745984,1731186102566,-579.34,0.0001491,2]
[341745985,1731186102611,-150.0,0.00014919,2]
[341745986,1731186102655,-150.0,0.00014927,2]
[341745987,1731186102699,-182.83,0.00014943,2]
[341745988,1731186102748,-500.0,0.00014973,2]
[341745989,1731186102790,-500.0,0.00014973,2]
[341745990,1731186102832,-179.6295899,0.0001499,2]
[341745991,1731186102874,-1273.19853209,0.00014999,2]
[341745992,1731186102917,-510.39,0.00014999,2]
[341745993,1731186102963,-1000.0,0.00014999,2]
[341745994,1731186103007,-1516403.75069575,0.00015,2]
[341745995,1731186128493,300.0,0.000139,5]
[341745996,1731186131177,600.0,0.00014,5]
[341745997,1731186132710,900.0,0.000141,5]
[341745998,1731186133345,-150.0,0.00012774,2]
[341745999,1731186133853,-150.0,0.00012774,2]
[341746000,1731186135036,1300.0,0.000142,5]
[341746001,1731186137046,1600.0,0.000143,5]
[341746002,1731186139094,300.0,0.000144,5]
[341746003,1731186142767,300.0,0.000145,5]
[341746004,1731186143864,300.0,0.000146,5]
[341746005,1731186145464,300.0,0.000147,5]
[341746006,1731186147525,700.0,0.000148,5]
[341746008,1731186339055,-1072.38,0.00012774,2]
[341746009,1731186339099,-250.0,0.00014304,2]
[341746010,1731186339141,-176.03,0.00014349,2]
[341746011,1731186339185,-161.84,0.00014409,2]
[341746012,1731186339228,-465.88,0.00014689,3]
[341746013,1731186339270,-234.98,0.00014692,2]
[341746014,1731186339311,-150.0,0.00014698,2]
[341746015,1731186339354,-166467.2083,0.00014699,2]
[341746016,1731186339395,-100000.0,0.00014699,2]
[341746017,1731186339701,-33550.54290364,0.000148,2]
[341746018,1731186339746,-150.0,0.000148,2]
[341746019,1731186339788,-150.0,0.000148,2]
[341746020,1731186339831,-150.0,0.000148,2]
[341746021,1731186339874,-427.88,0.000148,2]
[341746022,1731186339918,-150.0,0.000148,2]
[341746023,1731186339961,-762.33,0.000148,2]
[341746024,1731186340004,-200.0,0.000149,2]
[341746025,1731186340047,-1000.0,0.000149,2]
[341746026,1731186340090,-1000.0,0.000149,2]
[341746027,1731186340132,-432.91,0.000149,2]
[341746028,1731186340174,-150.0,0.000149,2]
[341746029,1731186340217,-150.0,0.000149,2]
[341746030,1731186340258,-150.0,0.000149,2]
[341746031,1731186340299,-762.33,0.000149,2]
[341746032,1731186340343,-427.88,0.000149,2]
[341746033,1731186340385,-150.0,0.000149,2]
[341746034,1731186340428,-150.0,0.000149,2]
[341746035,1731186340470,-150.0,0.000149,2]
[341746036,1731186340512,-899.1588,0.000149,2]
[341746037,1731186340553,-2500.0,0.000149,2]
[341746038,1731186340804,-200.8136,0.000149,2]
[341746039,1731186340855,-151.42395311,0.000149,2]
[341746040,1731186340896,-500.0,0.00014973,2]
[341746041,1731186340940,-848.79902139,0.00014999,2]
[341746042,1731186340984,-500.0,0.00014999,2]
[341746043,1731186341027,-500.0,0.00014999,2]
[341746044,1731186341072,-500.0,0.00014999,2]
[341746045,1731186341115,-500.0,0.00014999,2]
[341746046,1731186341159,-500.0,0.00014999,2]
[341746047,1731186341203,-500.0,0.00014999,2]
[341746048,1731186341246,-500.0,0.00014999,2]
[341746049,1731186341290,-500.0,0.00014999,2]
[341746050,1731186341334,-500.0,0.00014999,2]
[341746051,1731186341378,-532.30255897,0.00014999,2]
[341746052,1731186341422,-500.0,0.00014999,2]
[341746053,1731186341464,-500.0,0.00014999,2]
[341746054,1731186341508,-400.0,0.00014999,2]
[341746055,1731186341550,-595.49,0.00014999,2]
[341746056,1731186341592,-20387.76126289,0.00015,2]
[341746057,1731186362615,161.80949868,0.0001496,10]
[341746058,1731186362843,418.18629686,0.0001496,10]
[341746060,1731186506890,-150.0,0.00014039,2]
[341746061,1731186506937,-23900.0,0.00014591,2]
[341746062,1731186506980,-100000.0,0.00014599,2]
[341746063,1731186507361,-5085.72711081,0.000149,2]
[341746064,1731186507403,-1000.0,0.00014922,2]
[341746065,1731186507446,-627.1938694,0.00014973,2]
[341746066,1731186507489,-565.86601426,0.00014999,2]
[341746067,1731186507538,-1997546.82330553,0.00015,2]
[341746068,1731186544958,-150.0,0.00014733,2]
[341746069,1731186545001,-758.21085718,0.00014735,2]
[341746070,1731186545045,-150.0,0.00014739,2]
[341746071,1731186545089,-150.0,0.00014742,2]
[341746072,1731186545133,-150.0,0.00014743,2]
[341746073,1731186545175,-1500.0,0.00014751,2]
[341746074,1731186545217,-150.0,0.00014762,2]
[341746075,1731186545260,-150.0,0.00014781,2]
[341746076,1731186545302,-150.0,0.00014781,2]
[341746077,1731186545345,-150.0,0.00014783,2]
[341746078,1731186545388,-300.0,0.00014784,2]
[341746079,1731186545432,-150.0,0.00014785,2]
[341746080,1731186545712,-9999.99,0.00014785,2]
[341746081,1731186545764,-150.0,0.00014786,2]
[341746082,1731186545813,-150.0,0.00014788,2]
[341746083,1731186545865,-150.0,0.00014789,2]
[341746084,1731186545913,-150.0,0.00014791,2]
[341746085,1731186545959,-1500.0,0.00014793,2]
[341746086,1731186546006,-150.0,0.00014795,2]
[341746087,1731186546051,-150.0,0.00014796,2]
[341746088,1731186546098,-150.0,0.00014801,2]
[341746089,1731186546144,-150.0,0.00014809,2]
[341746090,1731186546192,-150.0,0.00014811,2]
[341746091,1731186546238,-150.0,0.00014823,2]
[341746092,1731186546287,-150.0,0.00014825,2]
[341746093,1731186546332,-150.0,0.00014831,2]
[341746094,1731186546377,-150.0,0.00014841,2]
[341746095,1731186546422,-150.0,0.00014846,2]
[341746096,1731186546467,-150.0,0.00014852,2]
[341746097,1731186546513,-150.0,0.00014852,2]
[341746098,1731186546560,-150.0,0.00014859,2]
[341746099,1731186546606,-150.0,0.00014859,2]
[341746100,1731186546650,-150.0,0.00014861,2]
[341746101,1731186546920,-150.0,0.00014867,2]
[341746102,1731186546966,-150.0,0.00014872,2]
[341746103,1731186547010,-150.0,0.00014874,2]
[341746104,1731186547054,-150.0,0.00014883,2]
[341746105,1731186547103,-150.0,0.0001489,2]
[341746106,1731186547146,-150.0,0.0001489,2]
[341746107,1731186547190,-150.0,0.00014896,2]
[341746108,1731186547234,-150.0,0.00014897,2]
[341746109,1731186547277,-150.0,0.000149,2]
[341746110,1731186547323,-150.0,0.00014902,2]
[341746111,1731186547367,-150.0,0.00014902,2]
[341746112,1731186547416,-150.0,0.00014903,2]
[341746113,1731186547462,-150.0,0.00014904,2]
[341746114,1731186547506,-150.0,0.00014915,2]
[341746115,1731186547550,-150.0,0.0001492,2]
[341746116,1731186547601,-150.0,0.00014922,2]
[341746117,1731186547646,-150.0,0.00014924,2]
[341746118,1731186547690,-150.0,0.00014926,2]
[341746119,1731186547734,-150.0,0.0001493,2]
[341746120,1731186547777,-150.0,0.00014932,2]
[341746121,1731186547823,-150.0,0.00014938,2]
[341746122,1731186548104,-150.0,0.00014944,2]
[341746123,1731186548149,-150.0,0.00014946,2]
[341746124,1731186548193,-150.0,0.0001496,2]
[341746125,1731186548236,-1500.0,0.00014961,2]
[341746126,1731186548280,-150.0,0.00014966,2]
[341746127,1731186548322,-1500.0,0.00014968,2]
[341746128,1731186548367,-150.0,0.0001497,2]
[341746129,1731186548412,-150.0,0.0001497,2]
[341746130,1731186548457,-150.0,0.00014972,2]
[341746131,1731186548503,-150.0,0.00014976,2]
[341746132,1731186548548,-150.0,0.00014979,2]
[341746133,1731186548592,-150.0,0.0001498,2]
[341746134,1731186548636,-150.0,0.00014984,2]
[341746135,1731186548680,-150.0,0.00014986,2]
[341746136,1731186548724,-150.0,0.00014991,2]
[341746137,1731186548768,-150.0,0.00014993,2]
[341746138,1731186548815,-150.0,0.00014996,2]
[341746139,1731186548858,-252.92742796,0.00014999,2]
[341746140,1731186548906,-1572.89384471,0.00014999,2]
[341746141,1731186548950,-493.40373698,0.00014999,2]
[341746142,1731186548993,-448985.73963317,0.00015,2]
[341746148,1731186598946,-500.0,0.00014795,2]
[341746149,1731186598971,-30898.2086,0.000149,2]
[341746150,1731186598994,-161.9160433,0.000149,2]
[341746151,1731186599016,-100000.0,0.000149,2]
[341746152,1731186599039,-204.6780203,0.000149,2]
[341746153,1731186599065,-1048.59589647,0.00014999,2]
[341746154,1731186599090,-57545104.60143993,0.00015,2]
[341746157,1731186631543,-1957.92080336,0.00014491,2]
[341746158,1731186631554,-535.511,0.00014491,2]
[341746159,1731186631566,-105.63849664,0.00014491,2]
[341746160,1731186631575,-299.133948,0.00014721,2]
[341746161,1731186631584,-393.83689506,0.00014727,2]
[341746162,1731186631593,-116.68088082,0.000149,2]
[341746163,1731186631608,-34585.63043818,0.000149,2]
[341746164,1731186631618,-117609.143,0.000149,2]
[341746165,1731186631626,-1000.0,0.000149,2]
[341746166,1731186631639,-1000.0,0.000149,2]
[341746167,1731186631648,-500.0,0.00014925,2]
[341746168,1731186631657,-500.0,0.00014925,2]
[341746169,1731186631667,-500.0,0.00014925,2]
[341746170,1731186631676,-500.0,0.00014925,2]
[341746171,1731186631685,-500.0,0.00014925,2]
[341746172,1731186631694,-423.5095,0.00014925,2]
[341746173,1731186631703,-1000.0,0.00014925,2]